fUST/lending_fUST_20240428
["ID","MTS","AMOUNT","RATE_DAILY","PERIOD"]
[323756964,1714246244108,-361.91629684,0.00019798,2]
[323756965,1714246244118,-155.69726499,0.00019798,2]
[323756966,1714246244128,-164.04462217,0.00019798,2]
[323756967,1714246244138,-265.1468592,0.00019798,2]
[323756968,1714246244148,-243.20278432,0.00019798,2]
[323756969,1714246244158,-1555.62550122,0.00019799,2]
[323757104,1714247225274,-354.43989047,0.00018249,2]
[323757105,1714247225295,-299.10346539,0.0001825,3]
[323757106,1714247351095,-300.0,0.00014728,2]
[323757140,1714247431872,-363.86320338,0.00014728,2]
[323757142,1714247431881,-455.44506909,0.0001825,3]
[323757144,1714247431893,-82.55146552,0.0001825,3]
[323757146,1714247431902,-544.13308089,0.00018512,2]
[323757148,1714247431913,-59.43926309,0.00018512,2]
[323757150,1714247431922,-299.10346639,0.00018513,2]
[323757152,1714247431931,-1877.10804762,0.00018513,2]
[323757154,1714247431941,-283.28340864,0.00018514,2]
[323757156,1714247431950,-35.46581426,0.00018514,2]
[323757158,1714247431962,-264.53418574,0.00018514,2]
[323757160,1714247431971,-3956.87559977,0.00018515,2]
[323757350,1714247438150,-2259.71200583,0.00018515,2]
[323757352,1714247438161,-2796.73495305,0.00018515,2]
[323757433,1714247442956,-15886.67744135,0.00018515,2]
[323757434,1714247442966,-3913.06523341,0.000189,2]
[323757435,1714247442975,-189.30063706,0.0001897,2]
[323757436,1714247442985,-837.1,0.0001905,3]
[323757437,1714247442994,-160.036895,0.00019178,2]
[323757438,1714247443004,-444.37449878,0.00019799,2]
[323757439,1714247443013,-207.60109099,0.00019799,2]
[323757440,1714247443023,-200.0,0.00019799,2]
[323757441,1714247443033,-837.1,0.0001984,3]
[323757442,1714247443042,-1056.17890346,0.00019897,2]
[323757443,1714247443052,-685.72461936,0.00019898,2]
[323757444,1714247443061,-1806.81192236,0.00019898,2]
[323757445,1714247443070,-427.82547392,0.00019898,2]
[323757447,1714247443080,-154.82968734,0.00019898,2]
[323757449,1714247443089,-162.6475328,0.00019898,2]
[323757451,1714247443098,-210.3932635,0.00019898,2]
[323757452,1714247443107,-154.82968734,0.00019899,2]
[323757453,1714247443116,-154.82968734,0.00019899,2]
[323757454,1714247443125,-162585.54800231,0.00019899,2]
[323757455,1714247443145,-500.0,0.00019899,2]
[323757456,1714247443175,-8775.13658011,0.00019899,2]
[323757500,1714248436099,-461.92467003,0.00014726,2]
[323757502,1714248548084,-300.0,0.00014725,2]
[323757503,1714248548107,-268.37467578,0.00014726,2]
[323757504,1714248548126,-1611.54765945,0.00014726,2]
[323757505,1714248548148,-154.86062544,0.00014726,2]
[323757506,1714248548171,-200.0,0.00014726,2]
[323757507,1714248548192,-363.86320338,0.00014726,2]
[323757508,1714248548216,-16098.46283785,0.00014726,2]
[323757509,1714248548239,-461.92467003,0.00014799,2]
[323757510,1714248548259,-54752.56957807,0.000148,2]
[323757511,1714248552080,-115149.30144665,0.000148,2]
[323757512,1714248554148,-141438.29110342,0.000148,2]
[323757513,1714248574082,-200.0,0.00014726,2]
[323757514,1714248574102,-363.86320338,0.00014726,2]
[323757515,1714248574121,-529.31257062,0.00014726,2]
[323757545,1714248632737,-508.62450987,0.00014726,2]
[323757546,1714248632746,-363.86320338,0.00014726,2]
[323757547,1714248632852,-200.0,0.00014726,2]
[323757548,1714248632868,-391.03055738,0.00014726,2]
[323757549,1714248632880,-484.25831573,0.00014726,2]
[323757550,1714248632898,-7836.03899662,0.00014726,2]
[323757551,1714248632907,-300.0,0.00014728,2]
[323757552,1714248632917,-420.0,0.00016201,2]
[323757553,1714248632927,-1448.6296719,0.00017446,2]
[323757554,1714248632936,-234.3198861,0.00017559,2]
[323757555,1714248632945,-587.0,0.00017821,2]
[323757556,1714248632955,-1435.8,0.0001789,3]
[323757557,1714248632964,-603.57234398,0.00018719,2]
[323757558,1714248632974,-1435.8,0.0001872,3]
[323757559,1714248632983,-5243.47238656,0.000189,2]
[323757560,1714248632992,-189.30063706,0.00019177,2]
[323757561,1714248633003,-500.0,0.00019178,2]
[323757562,1714248633014,-500.0,0.00019178,2]
[323757563,1714248633028,-500.0,0.00019178,2]
[323757564,1714248633039,-500.0,0.00019178,2]
[323757565,1714248633049,-500.0,0.00019178,2]
[323757566,1714248633058,-500.0,0.00019178,2]
[323757567,1714248633068,-182.34798423,0.00019178,2]
[323757568,1714248633077,-500.0,0.00019178,2]
[323757569,1714248633087,-160.539391,0.00019178,2]
[323757570,1714248633096,-159.935209,0.00019178,2]
[323757571,1714248633107,-153.0,0.00019208,2]
[323757572,1714248633116,-153.0,0.00019208,2]
[323757573,1714248633126,-153.0,0.00019208,2]
[323757574,1714248633136,-153.0,0.00019208,2]
[323757575,1714248633145,-153.0,0.00019208,2]
[323757576,1714248633154,-153.0,0.00019208,2]
[323757577,1714248633163,-153.0,0.00019208,2]
[323757578,1714248633173,-153.0,0.00019208,2]
[323757579,1714248633182,-955.9274359,0.00019289,2]
[323757580,1714248633193,-10000.0,0.00019521,2]
[323757581,1714248633202,-1435.8,0.0001955,3]
[323757582,1714248633211,-823.0,0.00019603,2]
[323757583,1714248633220,-157.53850697,0.000197,2]
[323757584,1714248633230,-306.0,0.00019732,2]
[323757585,1714248633239,-182.15398212,0.000198,2]
[323757586,1714248633248,-182.15398208,0.00019825,2]
[323757587,1714248633257,-182.15398208,0.0001985,2]
[323757588,1714248633268,-182.15398208,0.00019875,2]
[323757589,1714248633277,-5000.0,0.00019896,2]
[323757590,1714248633287,-768.18875681,0.00019897,2]
[323757591,1714248633297,-154.86062544,0.00019897,2]
[323757592,1714248633314,-408.57291394,0.00019897,2]
[323757593,1714248633337,-616.20110095,0.00019897,2]
[323757594,1714248633347,-155.07476335,0.00019897,2]
[323757595,1714248633357,-537.72189862,0.00019897,2]
[323757596,1714248633366,-1575.6250749,0.00019897,2]
[323757597,1714248633376,-884.01038673,0.00019898,2]
[323757598,1714248633385,-18173.36350142,0.00019898,2]
[323757599,1714248633394,-200.0,0.00019899,2]
[323757600,1714248633404,-281.15904372,0.00019899,2]
[323757601,1714248633413,-20595.28353964,0.000199,2]
[323757617,1714248638163,-186.9275538,0.00019897,2]
[323757619,1714248638173,-814.22896621,0.000199,2]
[323757662,1714248640271,-3413.93132159,0.000199,2]
[323757663,1714248640282,-591.172063,0.000199,2]
[323757664,1714248640325,-4076.3447162,0.000199,2]
[323757665,1714248640337,-10926.39587251,0.000199,2]
[323757745,1714248643222,-4026.64352085,0.000199,2]
[323757747,1714248643231,-151.0,0.000199,2]
[323757749,1714248643240,-151.0,0.000199,2]
[323757751,1714248643250,-833.739494,0.000199,2]
[323757753,1714248643259,-833.739494,0.000199,2]
[323757755,1714248643268,-158.072595,0.000199,2]
[323757756,1714248643279,-151.0,0.000199,2]
[323757757,1714248643288,-158.072595,0.000199,2]
[323757758,1714248643297,-151.223858,0.000199,2]
[323757759,1714248643306,-428.097724,0.000199,2]
[323757760,1714248643314,-182.15398208,0.000199,2]
[323757761,1714248643323,-428.097724,0.000199,2]
[323757762,1714248643332,-351.200277,0.000199,2]
[323757763,1714248643341,-351.200277,0.000199,2]
[323757764,1714248643349,-628.3290348,0.00019977,2]
[323757765,1714248643358,-597.02936604,0.00019997,2]
[323757766,1714248643367,-241.61171692,0.0002,2]
[323757767,1714248643376,-80000.0,0.0002,2]
[323757768,1714248643384,-329.804469,0.0002,2]
[323757769,1714248643393,-154.81422293,0.0002,2]
[323757770,1714248643402,-67387.81511513,0.0002,2]
[323757771,1714248643410,-154.81422293,0.0002,2]
[323757772,1714248643419,-400.0,0.0002,2]
[323757773,1714248643428,-21500.0,0.0002,2]
[323757774,1714248643437,-278.1654711,0.0002,2]
[323757775,1714248643446,-319.7999154,0.0002,2]
[323757776,1714248643454,-177.75,0.0002,2]
[323757777,1714248643463,-381.0,0.0002,2]
[323757778,1714248643472,-177.0,0.0002,2]
[323757780,1714248643483,-1097.16469069,0.0002,2]
[323757782,1714248643492,-151.0,0.0002,2]
[323757784,1714248643500,-215.0,0.0002,2]
[323757786,1714248643510,-151.0,0.0002,2]
[323757788,1714248643519,-151.0,0.0002,2]
[323757790,1714248643529,-151.0,0.0002,2]
[323757792,1714248643538,-156.432851,0.0002,2]
[323757794,1714248643548,-151.422826,0.0002,2]
[323757796,1714248643557,-306.739279,0.0002,2]
[323757798,1714248643566,-306.739279,0.0002,2]
[323757800,1714248643574,-151.0,0.0002,2]
[323757802,1714248643583,-173.619965,0.0002,2]
[323757804,1714248643593,-191.815976,0.0002,2]
[323757806,1714248643602,-191.815976,0.0002,2]
[323757808,1714248643611,-191.815976,0.0002,2]
[323757810,1714248643620,-191.815976,0.0002,2]
[323757812,1714248643629,-151.0,0.0002,2]
[323757814,1714248643638,-151.0,0.0002,2]
[323757816,1714248643647,-482.14308,0.0002,2]
[323757818,1714248643657,-151.0,0.0002,2]
[323757820,1714248643666,-482.14308,0.0002,2]
[323757822,1714248643675,-151.0,0.0002,2]
[323757824,1714248643684,-482.14308,0.0002,2]
[323757826,1714248643693,-482.14308,0.0002,2]
[323757828,1714248643702,-482.14308,0.0002,2]
[323757830,1714248643712,-482.14308,0.0002,2]
[323757832,1714248643721,-482.14308,0.0002,2]
[323757834,1714248643730,-482.14308,0.0002,2]
[323757836,1714248643739,-151.0,0.0002,2]
[323757838,1714248643749,-151.0,0.0002,2]
[323757840,1714248643758,-151.0,0.0002,2]
[323757842,1714248643767,-151.0,0.0002,2]
[323757843,1714248643779,-151.0,0.0002,2]
[323757844,1714248643788,-151.0,0.0002,2]
[323757845,1714248643797,-151.0,0.0002,2]
[323757846,1714248643807,-151.0,0.0002,2]
[323757847,1714248643817,-151.0,0.0002,2]
[323757848,1714248643826,-151.0,0.0002,2]
[323757849,1714248643836,-151.0,0.0002,2]
[323757850,1714248643846,-231.824253,0.0002,2]
[323757851,1714248643855,-1277.738128,0.0002,2]
[323757852,1714248643865,-1277.738128,0.0002,2]
[323757853,1714248643874,-1277.738128,0.0002,2]
[323757854,1714248643883,-1277.738128,0.0002,2]
[323757855,1714248643892,-1277.738128,0.0002,2]
[323757856,1714248643901,-1277.738128,0.0002,2]
[323757857,1714248643911,-1277.738128,0.0002,2]
[323757858,1714248643920,-1277.738128,0.0002,2]
[323757859,1714248643930,-1277.738128,0.0002,2]
[323757860,1714248643940,-1277.738128,0.0002,2]
[323757861,1714248643950,-151.0,0.0002,2]
[323757862,1714248643959,-151.0,0.0002,2]
[323757863,1714248643968,-151.0,0.0002,2]
[323757864,1714248643977,-151.0,0.0002,2]
[323757865,1714248643986,-151.0,0.0002,2]
[323757866,1714248643996,-151.0,0.0002,2]
[323757867,1714248644006,-151.0,0.0002,2]
[323757868,1714248644015,-151.0,0.0002,2]
[323757869,1714248644026,-284.109736,0.0002,2]
[323757870,1714248644037,-200.0,0.0002,2]
[323757871,1714248644047,-151.0,0.0002,2]
[323757872,1714248644057,-151.0,0.0002,2]
[323757873,1714248644066,-151.0,0.0002,2]
[323757874,1714248644075,-151.0,0.0002,2]
[323757875,1714248644172,-1095.221728,0.0002,2]
[323757876,1714248644181,-1095.221728,0.0002,2]
[323757877,1714248644190,-1095.221728,0.0002,2]
[323757878,1714248644199,-1095.221728,0.0002,2]
[323757879,1714248644208,-1095.221728,0.0002,2]
[323757880,1714248644217,-1095.221728,0.0002,2]
[323757881,1714248644228,-151.0,0.0002,2]
[323757882,1714248644237,-1095.221728,0.0002,2]
[323757883,1714248644247,-1095.221728,0.0002,2]
[323757884,1714248644256,-1095.221728,0.0002,2]
[323757885,1714248644266,-151.0,0.0002,2]
[323757886,1714248644276,-1095.221728,0.0002,2]
[323757887,1714248644285,-151.0,0.0002,2]
[323757888,1714248644294,-151.0,0.0002,2]
[323757889,1714248644303,-151.0,0.0002,2]
[323757890,1714248644312,-198.225672,0.0002,2]
[323757891,1714248644321,-151.0,0.0002,2]
[323757892,1714248644330,-151.0,0.0002,2]
[323757893,1714248644338,-151.0,0.0002,2]
[323757894,1714248644347,-153.866406,0.0002,2]
[323757895,1714248644357,-151.0,0.0002,2]
[323757896,1714248644366,-1233.314135,0.0002,2]
[323757897,1714248644375,-151.0,0.0002,2]
[323757898,1714248644384,-1233.314135,0.0002,2]
[323757899,1714248644393,-151.0,0.0002,2]
[323757900,1714248644403,-151.0,0.0002,2]
[323757901,1714248644412,-1233.314135,0.0002,2]
[323757902,1714248644421,-151.0,0.0002,2]
[323757903,1714248644430,-151.0,0.0002,2]
[323757904,1714248644439,-1233.314135,0.0002,2]
[323757905,1714248644448,-1233.314135,0.0002,2]
[323757906,1714248644458,-1233.314135,0.0002,2]
[323757907,1714248644468,-1233.314135,0.0002,2]
[323757908,1714248644477,-1233.314135,0.0002,2]
[323757909,1714248644486,-1233.314135,0.0002,2]
[323757910,1714248644495,-151.0,0.0002,2]
[323757911,1714248644503,-151.0,0.0002,2]
[323757912,1714248644513,-1233.314135,0.0002,2]
[323757913,1714248644522,-151.0,0.0002,2]
[323757914,1714248644533,-1233.314135,0.0002,2]
[323757915,1714248644542,-151.0,0.0002,2]
[323757916,1714248644552,-1233.314135,0.0002,2]
[323757917,1714248644561,-151.0,0.0002,2]
[323757918,1714248644570,-151.0,0.0002,2]
[323757919,1714248644579,-151.0,0.0002,2]
[323757920,1714248644589,-151.0,0.0002,2]
[323757921,1714248644598,-151.0,0.0002,2]
[323757922,1714248644607,-151.0,0.0002,2]
[323757923,1714248644617,-158.03863,0.0002,2]
[323757924,1714248644626,-903.588444,0.0002,2]
[323757925,1714248644636,-903.588444,0.0002,2]
[323757926,1714248644645,-903.588444,0.0002,2]
[323757927,1714248644655,-903.588444,0.0002,2]
[323757928,1714248644664,-903.588444,0.0002,2]
[323757929,1714248644674,-903.588444,0.0002,2]
[323757930,1714248644683,-903.588444,0.0002,2]
[323757931,1714248644692,-903.588444,0.0002,2]
[323757932,1714248644701,-903.588444,0.0002,2]
[323757933,1714248644710,-903.588444,0.0002,2]
[323757934,1714248644720,-903.588444,0.0002,2]
[323757935,1714248644729,-903.588444,0.0002,2]
[323757936,1714248644738,-903.588444,0.0002,2]
[323757937,1714248644747,-903.588444,0.0002,2]
[323757938,1714248644756,-151.0,0.0002,2]
[323757939,1714248644765,-151.0,0.0002,2]
[323757940,1714248644774,-151.0,0.0002,2]
[323757941,1714248644783,-1169.412167,0.0002,2]
[323757942,1714248644792,-151.0,0.0002,2]
[323757943,1714248644802,-1169.412167,0.0002,2]
[323757944,1714248644811,-151.0,0.0002,2]
[323757945,1714248644820,-1169.412167,0.0002,2]
[323757946,1714248644829,-1169.412167,0.0002,2]
[323757947,1714248644838,-151.0,0.0002,2]
[323757948,1714248644847,-151.0,0.0002,2]
[323757949,1714248644856,-1169.412167,0.0002,2]
[323757950,1714248644865,-151.0,0.0002,2]
[323757951,1714248644874,-151.0,0.0002,2]
[323757952,1714248644884,-1169.412167,0.0002,2]
[323757953,1714248644893,-1169.412167,0.0002,2]
[323757954,1714248644903,-151.0,0.0002,2]
[323757955,1714248644912,-151.0,0.0002,2]
[323757956,1714248644921,-151.0,0.0002,2]
[323757957,1714248644930,-1169.412167,0.0002,2]
[323757958,1714248644939,-151.0,0.0002,2]
[323757959,1714248644948,-1169.412167,0.0002,2]
[323757960,1714248644958,-1169.412167,0.0002,2]
[323757961,1714248644967,-151.0,0.0002,2]
[323757962,1714248644976,-1169.412167,0.0002,2]
[323757963,1714248644985,-1169.412167,0.0002,2]
[323757964,1714248644995,-1169.412167,0.0002,2]
[323757965,1714248645005,-151.0,0.0002,2]
[323757966,1714248645015,-1169.412167,0.0002,2]
[323757967,1714248645027,-151.0,0.0002,2]
[323757968,1714248645037,-209.748254,0.0002,2]
[323757969,1714248645048,-833.739494,0.0002,2]
[323757970,1714248645058,-833.739494,0.0002,2]
[323757971,1714248645069,-833.739494,0.0002,2]
[323757972,1714248645078,-833.739494,0.0002,2]
[323757973,1714248645087,-833.739494,0.0002,2]
[323757974,1714248645097,-833.739494,0.0002,2]
[323757975,1714248645106,-833.739494,0.0002,2]
[323757976,1714248645117,-833.739494,0.0002,2]
[323757977,1714248645126,-833.739494,0.0002,2]
[323757978,1714248645135,-833.739494,0.0002,2]
[323757979,1714248645144,-833.739494,0.0002,2]
[323757980,1714248645154,-833.739494,0.0002,2]
[323757981,1714248645163,-833.739494,0.0002,2]
[323757982,1714248645173,-833.739494,0.0002,2]
[323757983,1714248645182,-833.739494,0.0002,2]
[323757984,1714248645191,-833.739494,0.0002,2]
[323757985,1714248645200,-833.739494,0.0002,2]
[323757986,1714248645210,-833.739492,0.0002,2]
[323757987,1714248645220,-158.072595,0.0002,2]
[323757988,1714248645229,-151.31843755,0.0002,2]
[323757989,1714248645238,-151.0,0.0002,2]
[323757990,1714248645247,-158.072595,0.0002,2]
[323757991,1714248645256,-151.0,0.0002,2]
[323757992,1714248645266,-158.072595,0.0002,2]
[323757993,1714248645277,-151.0,0.0002,2]
[323757994,1714248645285,-158.072595,0.0002,2]
[323757995,1714248645294,-158.072595,0.0002,2]
[323757996,1714248645304,-158.072595,0.0002,2]
[323757997,1714248645313,-151.0,0.0002,2]
[323757998,1714248645323,-151.0,0.0002,2]
[323757999,1714248645332,-151.0,0.0002,2]
[323758000,1714248645341,-158.072595,0.0002,2]
[323758001,1714248645350,-156.206243,0.0002,2]
[323758002,1714248645360,-158.072595,0.0002,2]
[323758003,1714248645369,-158.072595,0.0002,2]
[323758004,1714248645451,-158.072595,0.0002,2]
[323758005,1714248645468,-158.072595,0.0002,2]
[323758006,1714248645477,-158.072595,0.0002,2]
[323758007,1714248645486,-158.072595,0.0002,2]
[323758008,1714248645495,-158.072595,0.0002,2]
[323758009,1714248645505,-158.072595,0.0002,2]
[323758010,1714248645514,-158.072595,0.0002,2]
[323758011,1714248645523,-158.072595,0.0002,2]
[323758012,1714248645534,-158.07259,0.0002,2]
[323758013,1714248645543,-428.097724,0.0002,2]
[323758014,1714248645553,-428.097724,0.0002,2]
[323758015,1714248645562,-428.097724,0.0002,2]
[323758016,1714248645571,-428.097724,0.0002,2]
[323758017,1714248645579,-428.097724,0.0002,2]
[323758018,1714248645588,-428.097724,0.0002,2]
[323758019,1714248645597,-428.097724,0.0002,2]
[323758020,1714248645606,-428.097724,0.0002,2]
[323758021,1714248645615,-428.097724,0.0002,2]
[323758022,1714248645624,-428.097724,0.0002,2]
[323758023,1714248645633,-428.097724,0.0002,2]
[323758024,1714248645643,-428.097724,0.0002,2]
[323758025,1714248645652,-428.097724,0.0002,2]
[323758026,1714248645661,-428.097724,0.0002,2]
[323758027,1714248645671,-428.097724,0.0002,2]
[323758028,1714248645680,-428.097724,0.0002,2]
[323758029,1714248645689,-428.097724,0.0002,2]
[323758030,1714248645698,-428.097714,0.0002,2]
[323758031,1714248645707,-351.200277,0.0002,2]
[323758033,1714248645716,-351.200277,0.0002,2]
[323758034,1714248645725,-351.200277,0.0002,2]
[323758035,1714248645734,-351.200277,0.0002,2]
[323758036,1714248645744,-351.200277,0.0002,2]
[323758037,1714248645753,-351.200277,0.0002,2]
[323758038,1714248645762,-351.200277,0.0002,2]
[323758040,1714248645771,-351.200277,0.0002,2]
[323758042,1714248645782,-351.200277,0.0002,2]
[323758043,1714248645790,-351.200277,0.0002,2]
[323758044,1714248645799,-351.200277,0.0002,2]
[323758045,1714248645809,-351.200277,0.0002,2]
[323758046,1714248645818,-351.200277,0.0002,2]
[323758047,1714248645827,-351.200277,0.0002,2]
[323758048,1714248645837,-351.200277,0.0002,2]
[323758049,1714248645846,-351.200277,0.0002,2]
[323758050,1714248645856,-351.200277,0.0002,2]
[323758051,1714248645865,-351.20028,0.0002,2]
[323758052,1714248645874,-369.378018,0.0002,2]
[323758054,1714248645883,-369.378018,0.0002,2]
[323758055,1714248645892,-369.378018,0.0002,2]
[323758056,1714248645901,-369.378018,0.0002,2]
[323758057,1714248645911,-151.0,0.0002,2]
[323758058,1714248645920,-151.0,0.0002,2]
[323758059,1714248645930,-151.0,0.0002,2]
[323758061,1714248645940,-151.0,0.0002,2]
[323758062,1714248645949,-369.378018,0.0002,2]
[323758063,1714248645958,-369.378018,0.0002,2]
[323758064,1714248645967,-369.378018,0.0002,2]
[323758065,1714248645977,-369.378018,0.0002,2]
[323758066,1714248645986,-151.0,0.0002003,2]
[323758067,1714248645995,-151.0,0.0002003,2]
[323758068,1714248646007,-1435.8,0.0002038,3]
[323758069,1714248646025,-152.74,0.00020566,2]
[323758070,1714248646041,-306.739279,0.00020576,2]
[323758071,1714248646057,-306.739279,0.00020576,2]
[323758072,1714248646075,-191.815976,0.00020576,2]
[323758073,1714248646091,-191.815976,0.00020576,2]
[323758074,1714248646106,-151.0,0.00020576,2]
[323758075,1714248646123,-482.14308,0.00020576,2]
[323758076,1714248646137,-482.14308,0.00020576,2]
[323758077,1714248646156,-151.0,0.00020576,2]
[323758078,1714248646171,-250.0,0.00020576,2]
[323758079,1714248646189,-429.4,0.00020576,2]
[323758080,1714248646209,-150.026,0.00020576,2]
[323758081,1714248646224,-153.0,0.0002059,2]
[323758082,1714248646236,-167.323085,0.00021149,2]
[323758083,1714248646252,-1238.583036,0.00021149,2]
[323758084,1714248646267,-557.829899,0.00021149,2]
[323758085,1714248646281,-160.392274,0.00021149,2]
[323758086,1714248646294,-250.435136,0.00021149,2]
[323758087,1714248646309,-151.0,0.00021149,2]
[323758088,1714248646323,-151.0,0.00021149,2]
[323758089,1714248646338,-151.0,0.00021149,2]
[323758090,1714248646352,-151.0,0.00021149,2]
[323758091,1714248646365,-151.0,0.00021149,2]
[323758092,1714248646379,-151.0,0.00021149,2]
[323758093,1714248646394,-1277.738128,0.00021149,2]
[323758094,1714248646407,-1277.738128,0.00021149,2]
[323758095,1714248646421,-151.0,0.00021149,2]
[323758096,1714248646435,-1095.221728,0.00021149,2]
[323758097,1714248646449,-1095.221728,0.00021149,2]
[323758098,1714248646463,-151.0,0.00021149,2]
[323758099,1714248646477,-903.588444,0.00021149,2]
[323758100,1714248646490,-903.588444,0.00021149,2]
[323758101,1714248646505,-1169.412167,0.00021149,2]
[323758102,1714248646520,-1169.412167,0.00021149,2]
[323758103,1714248646534,-369.378018,0.00021149,2]
[323758104,1714248646548,-151.0,0.00021149,2]
[323758105,1714248646563,-369.378018,0.00021149,2]
[323758106,1714248646577,-1435.8,0.0002121,3]
[323758107,1714248646591,-151.0,0.0002121,2]
[323758108,1714248646606,-1233.314135,0.0002121,2]
[323758109,1714248646620,-1233.314135,0.0002121,2]
[323758110,1714248646633,-151.0,0.0002121,2]
[323758111,1714248646648,-151.0,0.00021413,2]
[323758112,1714248646661,-151.0,0.00021413,2]
[323758113,1714248646676,-151.0,0.00021413,2]
[323758114,1714248646689,-151.0,0.00021413,2]
[323758115,1714248646703,-1238.583036,0.00021413,2]
[323758116,1714248646716,-557.829899,0.00021413,2]
[323758117,1714248646730,-1152.0,0.00021563,2]
[323758118,1714248646744,-1238.583036,0.00021678,2]
[323758119,1714248646757,-557.829899,0.00021678,2]
[323758120,1714248646772,-306.0,0.00021874,2]
[323758121,1714248646786,-153.0,0.00021874,2]
[323758122,1714248646801,-306.0,0.00021874,2]
[323758123,1714248646814,-153.0,0.00021874,2]
[323758124,1714248646824,-153.0,0.00021874,2]
[323758125,1714248646834,-59939.8033791,0.000219,7]
[323758126,1714248646844,-990.47243623,0.000219,2]
[323758127,1714248646854,-990.47243621,0.000219,2]
[323758128,1714248646863,-990.47243621,0.000219,2]
[323758129,1714248647030,-990.47243621,0.000219,2]
[323758130,1714248647056,-44071.07657966,0.000219,2]
[323758131,1714248647067,-2049.02578598,0.000219,2]
[323758132,1714248647302,-539.617068,0.000219,2]
[323758133,1714248647318,-1863.71932707,0.000219,2]
[323758134,1714248647327,-151.0,0.000219,2]
[323758135,1714248647336,-151.0,0.000219,2]
[323758136,1714248647345,-151.0,0.000219,2]
[323758137,1714248647355,-151.0,0.000219,2]
[323758138,1714248647365,-151.0,0.000219,2]
[323758139,1714248647374,-151.0,0.000219,2]
[323758140,1714248647384,-151.0,0.000219,2]
[323758141,1714248647393,-151.0,0.000219,2]
[323758142,1714248647402,-151.0,0.000219,2]
[323758143,1714248647411,-151.0,0.000219,2]
[323758144,1714248647420,-156.615225,0.000219,2]
[323758145,1714248647430,-306.739279,0.000219,2]
[323758146,1714248647439,-306.739279,0.000219,2]
[323758147,1714248647448,-306.739279,0.000219,2]
[323758148,1714248647457,-306.739279,0.000219,2]
[323758149,1714248647466,-151.0,0.000219,2]
[323758150,1714248647475,-151.0,0.000219,2]
[323758151,1714248647484,-151.0,0.000219,2]
[323758152,1714248647493,-198.105762,0.000219,2]
[323758153,1714248647503,-191.815976,0.000219,2]
[323758154,1714248647512,-191.815976,0.000219,2]
[323758155,1714248647522,-191.815976,0.000219,2]
[323758156,1714248647532,-191.815976,0.000219,2]
[323758157,1714248647541,-191.815976,0.000219,2]
[323758158,1714248647551,-191.815976,0.000219,2]
[323758159,1714248647561,-151.699765,0.000219,2]
[323758160,1714248647570,-482.14308,0.000219,2]
[323758161,1714248647580,-482.14308,0.000219,2]
[323758162,1714248647589,-482.14308,0.000219,2]
[323758163,1714248647599,-482.14308,0.000219,2]
[323758164,1714248647609,-482.14308,0.000219,2]
[323758165,1714248647620,-482.14308,0.000219,2]